bitfinex/quotes_BTCUSD_20250608
["timestamp","ask_amount","ask_price","bid_price","bid_amount"]
[1749346583054,0.1250815,105700.0,105690.0,0.7244903]
[1749346583267,0.12508141,105700.0,105690.0,0.7244903]
[1749346585786,0.11558086,105700.0,105690.0,0.7244903]
[1749346585920,0.12504141,105700.0,105690.0,0.7244903]
[1749346586402,0.11558086,105700.0,105690.0,0.7244903]
[1749346587861,0.12504141,105700.0,105690.0,0.7244903]
[1749346588271,0.11558086,105700.0,105690.0,0.7244903]
[1749346592018,0.12504043,105700.0,105690.0,0.7244903]
[1749346592422,0.11558006,105700.0,105690.0,0.7244903]
[1749346592627,0.12504035,105700.0,105690.0,0.7244903]
[1749346593245,0.09665993,105700.0,105690.0,0.7244903]
[1749346593860,0.10612004,105700.0,105690.0,0.7244903]
[1749346594062,0.10611995,105700.0,105690.0,0.7244903]
[1749346597704,0.09665993,105700.0,105690.0,0.7244903]
[1749346597898,0.11558024,105700.0,105690.0,0.7244903]
[1749346598257,0.11558015,105700.0,105690.0,0.7244903]
[1749346599073,0.10611995,105700.0,105690.0,0.7244903]
[1749346599690,0.11558015,105700.0,105690.0,0.7244903]
[1749346610179,0.10611995,105700.0,105690.0,0.7244903]
[1749346610381,0.11558015,105700.0,105690.0,0.7244903]
[1749346611012,0.10611995,105700.0,105690.0,0.7244903]
[1749346611214,0.09665993,105700.0,105690.0,0.7244903]
[1749346611446,0.10612013,105700.0,105690.0,0.7244903]
[1749346614286,0.11558042,105700.0,105690.0,0.72449029]
[1749346624703,0.12504088,105700.0,105690.0,0.72449029]
[1749346624922,0.11558042,105700.0,105690.0,0.72449029]
[1749346625625,0.0872,105700.0,105690.0,0.72449029]
[1749346625770,0.09666011,105700.0,105690.0,0.72449029]
[1749346628444,0.1061204,105700.0,105690.0,0.72449029]
[1749346628649,0.09666011,105700.0,105690.0,0.72449029]
[1749346630342,0.1061204,105700.0,105690.0,0.43777029]
[1749346630551,0.1061204,105700.0,105690.0,0.72437029]
[1749346631052,0.09666011,105700.0,105690.0,0.72437029]
[1749346631275,0.1061204,105700.0,105690.0,0.69157029]
[1749346633010,0.09666011,105700.0,105690.0,0.69157029]
[1749346633165,0.1061204,105700.0,105690.0,0.69157029]
[1749346633797,0.09666011,105700.0,105690.0,0.69157029]
[1749346633970,0.1061204,105700.0,105690.0,0.69157029]
[1749346634367,0.09666011,105700.0,105690.0,0.69157029]
[1749346637631,0.10612031,105700.0,105690.0,0.69157029]
[1749346637801,0.10612031,105700.0,105690.0,0.70717029]
[1749346638004,0.10612031,105700.0,105690.0,0.72247029]
[1749346644952,0.09666011,105700.0,105690.0,0.72247029]
[1749346646211,0.1061204,105700.0,105690.0,0.72247029]
[1749346646426,0.09666011,105700.0,105690.0,0.72247029]
[1749346650660,0.0872,105700.0,105690.0,0.72247029]
[1749346650879,0.09666002,105700.0,105690.0,0.72247029]
[1749346657992,0.10612013,105700.0,105690.0,0.72247029]
[1749346659700,0.11558033,105700.0,105690.0,0.72247029]
[1749346660139,0.10612013,105700.0,105690.0,0.70717029]
[1749346660553,0.11558033,105700.0,105690.0,0.42057029]
[1749346660769,0.10612022,105700.0,105690.0,0.69153029]
[1749346660974,0.09666002,105700.0,105690.0,0.69153029]
[1749346661171,0.10612022,105700.0,105690.0,0.69153029]
[1749346661377,0.12504097,105700.0,105690.0,0.69153029]
[1749346661787,0.11558051,105700.0,105690.0,0.69153029]
[1749346662559,0.12504088,105700.0,105690.0,0.69153029]
[1749346665776,0.11558051,105700.0,105690.0,0.69153029]
[1749346666665,0.11558051,105700.0,105690.0,0.70783029]
[1749346667549,0.10612022,105700.0,105690.0,0.72423029]
[1749346668020,0.09666002,105700.0,105690.0,0.72423029]
[1749346668206,0.10612013,105700.0,105690.0,0.72423029]
[1749346668849,0.09666002,105700.0,105690.0,0.72423029]
[1749346669265,0.10612022,105700.0,105690.0,0.72423029]
[1749346669676,0.10612013,105700.0,105690.0,0.72423029]
[1749346671974,0.10585675,105700.0,105690.0,0.72423029]
[1749346673237,0.11531695,105700.0,105690.0,0.72423029]
[1749346673894,0.12477724,105700.0,105690.0,0.72423029]
[1749346674285,0.12477724,105700.0,105690.0,0.69153029]
[1749346675796,0.11531695,105700.0,105690.0,0.69153029]
[1749346678538,0.10585675,105700.0,105690.0,0.69153029]
[1749346678667,0.11531704,105700.0,105690.0,0.70783029]
[1749346679699,0.11531712,105700.0,105690.0,0.70783029]
[1749346680107,0.10585675,105700.0,105690.0,0.70783029]
[1749346680305,0.11531695,105700.0,105690.0,0.70783029]
[1749346681332,0.12477724,105700.0,105690.0,0.70783029]
[1749346682228,0.10585675,105700.0,105690.0,0.72423029]
[1749346682428,0.11531704,105700.0,105690.0,0.72423029]
[1749346683623,0.31399278,105700.0,105690.0,0.17789273]
[1749346683876,0.32757238,105700.0,105690.0,0.0626132]
[1749346684079,0.61413238,105700.0,105690.0,0.10041551]
[1749346684292,0.61413238,105700.0,105690.0,0.0809382]
[1749346684499,0.61413238,105700.0,105690.0,0.04313589]
[1749346684909,0.61413238,105700.0,105690.0,0.0431208]
[1749346685117,0.61413238,105700.0,105690.0,0.04312073]
[1749346685331,0.61413238,105700.0,105690.0,0.0411208]
[1749346685536,0.61413238,105700.0,105690.0,0.04212083]
[1749346685949,0.61413238,105700.0,105690.0,0.04012083]
[1749346686367,0.61413238,105700.0,105690.0,0.04112083]
[1749346686579,0.61413238,105700.0,105690.0,0.01276686]
[1749346687426,0.61413238,105700.0,105690.0,0.0039215]
[1749346688050,0.61413238,105700.0,105690.0,0.01276682]
[1749346688496,0.61413238,105700.0,105690.0,0.01276155]
[1749346688708,0.61413238,105700.0,105690.0,0.0039215]
[1749346689611,0.61413238,105700.0,105690.0,0.01276153]
[1749346689817,0.61413238,105700.0,105690.0,0.0039215]
[1749346690024,0.61413238,105700.0,105690.0,0.01276154]
[1749346690696,0.61413238,105700.0,105690.0,0.0039215]
[1749346691564,0.61413238,105700.0,105690.0,0.01276055]
[1749346691781,0.61413238,105700.0,105690.0,0.01276057]
[1749346692248,0.61413238,105700.0,105690.0,0.01276054]
[1749346692477,0.61413238,105700.0,105690.0,0.0039215]
[1749346692701,0.61413238,105700.0,105690.0,0.01276043]
[1749346692924,0.61413238,105700.0,105690.0,0.0039215]
[1749346693132,0.61413238,105700.0,105690.0,0.01276042]
[1749346693553,0.61413238,105700.0,105690.0,0.01275857]
[1749346694189,0.61413238,105700.0,105690.0,0.0039215]
[1749346694409,0.61413238,105700.0,105690.0,0.01275858]
[1749346694621,0.61413238,105700.0,105690.0,0.0039215]
[1749346695048,0.61413238,105700.0,105690.0,0.01275832]
[1749346695690,0.61413238,105700.0,105690.0,0.0039215]
[1749346695899,0.61413238,105700.0,105690.0,0.01275785]
[1749346696304,0.61413238,105700.0,105690.0,0.01275787]
[1749346696505,0.61413238,105700.0,105690.0,0.0039215]
[1749346696718,0.61413238,105700.0,105690.0,0.01275787]
[1749346697403,0.61413238,105700.0,105690.0,0.01275738]
[1749346698275,0.61413238,105700.0,105690.0,0.0039215]
[1749346698508,0.61413238,105700.0,105690.0,0.01275734]
[1749346698718,0.61413238,105700.0,105690.0,0.01275736]
[1749346699762,0.61413238,105700.0,105690.0,0.0039215]
[1749346700408,0.61413238,105700.0,105690.0,0.01275764]
[1749346701232,0.61413238,105700.0,105690.0,0.0039215]
[1749346701447,0.61413238,105700.0,105690.0,0.01275823]
[1749346701875,0.61413238,105700.0,105690.0,0.01275822]
[1749346702057,0.61413238,105700.0,105690.0,0.0039215]
[1749346702280,0.61413238,105700.0,105690.0,0.01275805]
[1749346702485,0.61413238,105700.0,105690.0,0.0039215]
[1749346702694,0.61413238,105700.0,105690.0,0.01275891]
[1749346703107,0.61413238,105700.0,105690.0,0.0039215]
[1749346703526,0.61413238,105700.0,105690.0,0.0127589]
[1749346703729,0.61413238,105700.0,105690.0,0.0039215]
[1749346704839,0.61413238,105700.0,105690.0,0.01275889]
[1749346705690,0.61413238,105700.0,105690.0,0.0039215]
[1749346706120,0.61413238,105700.0,105690.0,0.01275977]
[1749346706327,0.61413238,105700.0,105690.0,0.0127598]
[1749346706534,0.61413238,105700.0,105690.0,0.01275971]
[1749346706740,0.61413238,105700.0,105690.0,0.03227547]
[1749346707364,0.61413238,105700.0,105690.0,0.01276202]
[1749346707573,0.61413238,105700.0,105690.0,0.03227547]
[1749346708196,0.61413238,105700.0,105690.0,0.04105883]
[1749346708798,0.61413238,105700.0,105690.0,0.03221829]
[1749346709010,0.61413238,105700.0,105690.0,0.04105884]
[1749346709212,0.61413238,105700.0,105690.0,0.04105887]
[1749346709422,0.61413238,105700.0,105690.0,0.04106317]
[1749346709629,0.61413238,105700.0,105690.0,0.04106319]
[1749346709863,0.61413238,105700.0,105690.0,0.04106312]
[1749346710055,0.61413238,105700.0,105690.0,0.04106305]
[1749346710259,0.61413238,105700.0,105690.0,0.0410631]
[1749346710463,0.61413238,105700.0,105690.0,0.04106311]
[1749346710698,0.61413238,105700.0,105690.0,0.03221829]
[1749346711247,0.61413238,105700.0,105690.0,0.04107795]
[1749346711460,0.61413238,105700.0,105690.0,0.03221829]
[1749346711900,0.61413238,105700.0,105690.0,0.04107798]
[1749346712109,0.61413238,105700.0,105690.0,0.03221829]
[1749346712742,0.61413238,105700.0,105690.0,0.04107798]
[1749346712951,0.61413238,105700.0,105690.0,0.03221829]
[1749346713162,0.61413238,105700.0,105690.0,0.04107799]
[1749346713373,0.61413238,105700.0,105690.0,0.0700206]
[1749346714234,0.61413238,105700.0,105690.0,0.07888025]
[1749346714438,0.61413238,105700.0,105690.0,0.07888028]
[1749346714640,0.61413238,105700.0,105690.0,0.07888061]
[1749346714899,0.61413238,105700.0,105690.0,0.0700206]
[1749346715286,0.61413238,105700.0,105690.0,0.07888063]
[1749346715515,0.61413238,105700.0,105690.0,0.0700206]
[1749346715700,0.61413238,105700.0,105690.0,0.07888068]
[1749346716112,0.61413238,105700.0,105690.0,0.0700206]
[1749346716325,0.61413238,105700.0,105690.0,0.07888062]
[1749346716533,0.61413238,105700.0,105690.0,0.0700206]
[1749346716740,0.61413238,105700.0,105690.0,0.0788806]
[1749346716958,0.61413238,105700.0,105690.0,0.07888059]
[1749346717323,0.61413238,105700.0,105690.0,0.07888027]
[1749346717531,0.61413238,105700.0,105690.0,0.0700206]
[1749346717845,0.59813238,105700.0,105690.0,0.0788804]
[1749346718747,0.59813238,105700.0,105690.0,0.0700206]
[1749346719130,0.59813238,105700.0,105690.0,0.07888046]
[1749346719345,0.59813238,105700.0,105690.0,0.0700206]
[1749346719545,0.59813238,105700.0,105690.0,0.07888038]
[1749346719736,0.59813238,105700.0,105690.0,0.0700206]
[1749346719931,0.59813238,105700.0,105690.0,0.07888048]
[1749346720164,0.59813238,105700.0,105690.0,0.07888051]
[1749346720606,0.59813238,105700.0,105690.0,0.0700206]
[1749346721591,0.59813238,105700.0,105690.0,0.07888055]
[1749346721797,0.59813238,105700.0,105690.0,0.0700206]
[1749346721995,0.59813238,105700.0,105690.0,0.07888041]
[1749346722195,0.59813238,105700.0,105690.0,0.0700206]
[1749346722543,0.59813238,105700.0,105690.0,0.07888049]
[1749346723277,0.59813238,105700.0,105690.0,0.08774064]
[1749346723482,0.58163238,105700.0,105690.0,0.07888049]
[1749346723682,0.58163238,105700.0,105690.0,0.08774049]
[1749346723894,0.58163238,105700.0,105690.0,0.07888049]
[1749346724085,0.58163238,105700.0,105690.0,0.08774061]
[1749346724288,0.58163238,105700.0,105690.0,0.08774062]
[1749346724492,0.58163238,105700.0,105690.0,0.07888049]
[1749346724706,0.58163238,105700.0,105690.0,0.08774053]
[1749346724912,0.58163238,105700.0,105690.0,0.08774054]
[1749346725127,0.58163238,105700.0,105690.0,0.08774057]
[1749346725333,0.58163238,105700.0,105690.0,0.07893785]
[1749346725507,0.58163238,105700.0,105690.0,0.08779813]
[1749346726064,0.58163238,105700.0,105690.0,0.08779816]
[1749346726268,0.58163238,105700.0,105690.0,0.08779802]
[1749346726442,0.58163238,105700.0,105690.0,0.07893785]
[1749346726645,0.58163238,105700.0,105690.0,0.08779809]
[1749346726886,0.58163238,105700.0,105690.0,0.07893785]
[1749346727858,0.58163238,105700.0,105690.0,0.08779822]
[1749346728059,0.58163238,105700.0,105690.0,0.0877982]
[1749346728665,0.58163238,105700.0,105690.0,0.07893785]
[1749346728867,0.58163238,105700.0,105690.0,0.08779869]
[1749346729071,1.07255238,105700.0,105690.0,0.08779869]
[1749346729476,1.07255238,105700.0,105690.0,0.08779868]
[1749346729880,1.07255238,105700.0,105690.0,0.07893785]
[1749346730077,1.07255238,105700.0,105690.0,0.0877988]
[1749346730302,1.07255238,105700.0,105690.0,0.08779886]
[1749346730509,1.07255238,105700.0,105690.0,0.08779882]
[1749346730713,1.07255238,105700.0,105690.0,0.07893785]
[1749346730926,1.07920988,105700.0,105690.0,0.08779978]
[1749346731123,1.07920983,105700.0,105690.0,0.07893785]
[1749346731326,1.07255238,105700.0,105690.0,0.08779978]
[1749346731552,1.07920987,105700.0,105690.0,0.07893785]
[1749346731684,1.07255238,105700.0,105690.0,0.07893785]
[1749346731889,1.07255238,105700.0,105690.0,0.08779964]
[1749346732131,1.07920988,105700.0,105690.0,0.08779978]
[1749346732810,1.07255238,105700.0,105690.0,0.07893785]
[1749346733076,1.07920988,105700.0,105690.0,0.0877998]
[1749346733376,1.07255238,105700.0,105690.0,0.07893785]
[1749346733578,1.07255238,105700.0,105690.0,0.08779977]
[1749346733724,1.07920988,105700.0,105690.0,0.07893785]
[1749346733923,1.07920988,105700.0,105690.0,0.08779977]
[1749346734124,1.07920987,105700.0,105690.0,0.08779968]
[1749346734386,1.07255238,105700.0,105690.0,0.08779975]
[1749346734601,1.07920987,105700.0,105690.0,0.07893785]
[1749346734819,1.07920987,105700.0,105690.0,0.08779974]
[1749346735016,1.07255238,105700.0,105690.0,0.08779974]
[1749346735230,1.07255238,105700.0,105690.0,0.08779967]
[1749346735448,1.07255238,105700.0,105690.0,0.08779965]
[1749346735693,1.07255238,105700.0,105690.0,0.07893785]
[1749346736107,1.07255238,105700.0,105690.0,0.08779961]
[1749346736307,1.07255238,105700.0,105690.0,0.08779959]
[1749346736514,1.07255238,105700.0,105690.0,0.07893785]
[1749346736722,1.07255238,105700.0,105690.0,0.08779959]
[1749346737310,1.07255238,105700.0,105690.0,0.07893785]
[1749346737685,1.07255238,105700.0,105690.0,0.08779954]
[1749346738846,1.07255238,105700.0,105690.0,0.08779955]
[1749346739235,1.07255238,105700.0,105690.0,0.08779954]
[1749346739443,1.07255238,105700.0,105690.0,0.07893785]
[1749346740021,1.07255238,105700.0,105690.0,0.08779938]
[1749346740263,1.07255238,105700.0,105690.0,0.08779941]
[1749346740407,1.07255238,105700.0,105690.0,0.07893785]
[1749346740860,1.07255238,105700.0,105690.0,0.08779941]
[1749346741082,1.07255238,105700.0,105690.0,0.0877994]
[1749346741289,1.07255238,105700.0,105690.0,0.08779942]
[1749346741931,1.07255238,105700.0,105690.0,0.07893785]
[1749346742144,1.07255238,105700.0,105690.0,0.0877994]
[1749346742358,1.07255238,105700.0,105690.0,0.08779942]
[1749346742562,1.07255238,105700.0,105690.0,0.07893785]
[1749346742974,1.07255238,105700.0,105690.0,0.08779945]
[1749346743200,1.07259238,105700.0,105690.0,0.07893785]
[1749346743653,1.07259238,105700.0,105690.0,0.30893214]
[1749346743862,1.07259238,105700.0,105690.0,0.29947051]
[1749346744304,1.07259238,105700.0,105690.0,0.30833177]
[1749346744515,1.07259238,105700.0,105690.0,0.1385754]
[1749346744726,1.06313201,105700.0,105690.0,0.09074438]
[1749346744940,1.06313201,105700.0,105690.0,0.0818837]
[1749346745830,1.06313201,105700.0,105690.0,0.27111636]
[1749346746697,1.06313201,105700.0,105690.0,0.29946451]
[1749346746921,0.77653201,105700.0,105690.0,0.27111636]
[1749346747157,1.06313201,105700.0,105690.0,0.27111636]
[1749346747591,1.06313201,105700.0,105690.0,0.29946336]
[1749346748707,1.06313201,105700.0,105690.0,0.29950017]
[1749346748708,0.57804,105700.0,105690.0,0.29950017]
[1749346748919,0.57804,105700.0,105690.0,0.80877357]
[1749346749129,0.57804,105700.0,105690.0,0.43366909]
[1749346749340,0.57804,105700.0,105690.0,0.72146909]
[1749346749595,0.57804,105700.0,105690.0,0.64589734]
[1749346749809,0.57804,105700.0,105690.0,0.72146909]
[1749346751534,0.57804,105700.0,105690.0,0.64589734]
[1749346752591,0.57804,105700.0,105690.0,0.70246532]
[1749346754273,0.57804,105700.0,105690.0,0.64589734]
[1749346755545,0.57804,105700.0,105690.0,0.70243118]
[1749346759255,0.57804,105700.0,105690.0,0.64589734]
[1749346759664,0.57804,105700.0,105690.0,0.70240402]
[1749346761840,0.57804,105700.0,105690.0,0.70212402]
[1749346767895,0.57804,105700.0,105690.0,0.64561734]
[1749346768312,0.57804,105700.0,105690.0,0.70211912]
[1749346769121,0.57804,105700.0,105690.0,0.64561734]
[1749346769329,0.57804,105700.0,105690.0,0.70212424]
[1749346769535,0.57804,105700.0,105690.0,0.64561734]
[1749346771650,0.57804,105700.0,105690.0,0.72118909]
[1749346771852,0.57804,105700.0,105690.0,0.64561734]
[1749346772645,0.57804,105700.0,105690.0,0.72118909]
[1749346776708,0.08712,105700.0,105690.0,0.72118909]
[1749346802960,0.4908,105710.0,105700.0,0.21759587]
[1749346803163,0.57832,105710.0,105700.0,0.4230886]
[1749346803364,0.57832,105710.0,105700.0,0.42308859]
[1749346803975,0.57832,105710.0,105700.0,0.42308858]
[1749346805224,0.57832,105710.0,105700.0,0.43271613]
[1749346805431,0.57832,105710.0,105700.0,0.43571613]
[1749346806425,0.57832,105710.0,105700.0,0.43771612]
[1749346809222,0.57832,105710.0,105700.0,0.43771611]
[1749346810368,0.57828,105710.0,105700.0,0.43771611]
[1749346812155,0.57828,105710.0,105700.0,0.4377161]
[1749346817605,0.57828,105710.0,105700.0,0.7777161]
[1749346817753,0.57828,105710.0,105700.0,0.77771609]
[1749346818619,0.4908,105710.0,105700.0,0.77771609]
[1749346818763,0.57828,105710.0,105700.0,0.77771608]
[1749346818964,0.57828,105710.0,105700.0,1.17170061]
[1749346819169,0.57828,105710.0,105700.0,0.77771608]
[1749346820189,0.57828,105710.0,105700.0,1.26187727]
[1749346820400,0.57828,105710.0,105700.0,1.28065861]
[1749346820595,0.57828,105710.0,105700.0,1.30907961]
[1749346820919,0.57828,105710.0,105700.0,1.28065861]
[1749346821125,0.57828,105710.0,105700.0,1.2786586]
[1749346821733,0.57828,105710.0,105700.0,1.2756586]
[1749346822001,0.57828,105710.0,105700.0,1.27965859]
[1749346822436,0.57828,105710.0,105700.0,1.31107959]
[1749346824187,0.57828,105710.0,105700.0,1.31107958]
[1749346824606,0.08748,105710.0,105700.0,1.31107958]
[1749346824791,0.002,105730.0,105720.0,0.23365472]
[1749346825004,0.08952785,105730.0,105720.0,0.69205093]
[1749346825204,0.08952785,105730.0,105720.0,0.63555556]
[1749346825463,0.08952785,105730.0,105720.0,0.63555555]
[1749346825840,0.08952785,105730.0,105720.0,0.63555554]
[1749346826268,0.08952785,105730.0,105720.0,0.63655554]
[1749346826874,0.08952785,105730.0,105720.0,0.63655553]
[1749346827588,0.08952785,105730.0,105720.0,0.71188267]
[1749346827791,0.00204785,105730.0,105720.0,0.72642351]
[1749346828000,0.08952785,105730.0,105720.0,0.72642351]
[1749346828230,0.08952785,105730.0,105720.0,0.7264235]
[1749346829089,0.00204785,105730.0,105720.0,1.12140802]
[1749346829316,0.08952785,105730.0,105720.0,1.46140801]
[1749346829529,0.08952785,105730.0,105720.0,1.463408]
[1749346829750,0.08952785,105730.0,105720.0,1.39108083]
[1749346829978,0.08952785,105730.0,105720.0,1.78506535]
[1749346830213,0.08952785,105730.0,105720.0,1.39108081]
[1749346830426,0.08952785,105730.0,105720.0,1.86348033]
[1749346830667,0.08952785,105730.0,105720.0,2.16138031]
[1749346830877,0.08952785,105730.0,105720.0,2.16138029]
[1749346831085,0.08952785,105730.0,105720.0,2.16138028]
[1749346831729,0.08952785,105730.0,105720.0,2.23655855]
[1749346831936,0.08952785,105730.0,105720.0,2.23655854]
[1749346832355,0.08952785,105730.0,105720.0,2.16138027]
[1749346832567,0.08952785,105730.0,105720.0,2.25573337]
[1749346832786,0.08952785,105730.0,105720.0,2.67819292]
[1749346832787,0.00204785,105730.0,105720.0,2.67819292]
[1749346832995,0.002,105750.0,105740.0,0.24991357]
[1749346833207,0.00204785,105750.0,105740.0,1.42456323]
[1749346833414,0.00204785,105750.0,105740.0,0.63659415]
[1749346833621,0.00204785,105750.0,105740.0,0.66500115]
[1749346833838,0.00204785,105750.0,105740.0,1.13405016]
[1749346834062,0.00204785,105750.0,105740.0,1.13405015]
[1749346834485,0.00204785,105750.0,105740.0,1.52803468]
[1749346834690,0.00204785,105750.0,105740.0,1.52803467]
[1749346834901,0.00204785,105750.0,105740.0,1.52803466]
[1749346835107,0.00204785,105750.0,105740.0,1.53303466]
[1749346835324,0.00204785,105750.0,105740.0,1.53903466]
[1749346835738,0.00204785,105750.0,105740.0,1.53903465]
[1749346836798,0.00204785,105750.0,105740.0,1.53903464]
[1749346837923,0.00204785,105750.0,105740.0,1.04896557]
[1749346838167,0.00204785,105750.0,105740.0,1.4429501]
[1749346838368,0.00204785,105750.0,105740.0,1.44295009]
[1749346839414,0.00204785,105750.0,105740.0,1.44295008]
[1749346839822,0.00204785,105750.0,105740.0,1.36788559]
[1749346840872,0.00204785,105750.0,105740.0,1.36788558]
[1749346841080,0.00204785,105750.0,105740.0,0.97390105]
[1749346841279,0.00204785,105750.0,105740.0,1.76187011]
[1749346842053,0.00204785,105750.0,105740.0,1.7618701]
[1749346843940,0.00204785,105750.0,105740.0,1.76187009]
[1749346844768,0.00204785,105750.0,105740.0,1.83693458]
[1749346845326,0.00204785,105750.0,105740.0,1.83693457]
[1749346846747,0.00204785,105750.0,105740.0,1.44295004]
[1749346846907,0.00204785,105750.0,105740.0,1.44295003]
[1749346847107,0.01150348,105750.0,105740.0,0.7282055]
[1749346847315,0.0461151,105750.0,105740.0,1.34727621]
[1749346847526,0.0530592,105750.0,105740.0,1.02097267]
[1749346847725,0.0530592,105750.0,105740.0,0.97889208]
[1749346848319,0.04360339,105750.0,105740.0,0.97389207]
[1749346848521,0.05305911,105750.0,105740.0,0.96789207]
[1749346848732,0.05305911,105750.0,105740.0,0.96989207]
[1749346848930,0.05305911,105750.0,105740.0,0.97389207]
[1749346849133,0.04360339,105750.0,105740.0,0.97389206]
[1749346849335,0.05305911,105750.0,105740.0,0.97389206]
[1749346849548,0.04360339,105750.0,105740.0,0.97389205]
[1749346849757,0.04360339,105750.0,105740.0,0.64785347]
[1749346849958,0.04360331,105750.0,105740.0,0.64785347]
[1749346850309,0.05305894,105750.0,105740.0,0.64773347]
[1749346850550,0.05305885,105750.0,105740.0,0.64773347]
[1749346850748,0.04360331,105750.0,105740.0,0.64773347]
[1749346851656,0.04360331,105750.0,105740.0,0.70397197]
[1749346852465,0.03414785,105750.0,105740.0,0.70397197]
[1749346853047,0.04360339,105750.0,105740.0,0.70397197]
[1749346853394,0.03414785,105750.0,105740.0,0.70397196]
[1749346854548,0.04360331,105750.0,105740.0,0.70397196]
[1749346855160,0.04360339,105750.0,105740.0,0.70381196]
[1749346856015,0.04360331,105750.0,105740.0,0.70381196]
[1749346856220,0.05305894,105750.0,105740.0,0.70381196]
[1749346856902,0.04360331,105750.0,105740.0,0.70381196]
[1749346857032,0.05305903,105750.0,105740.0,0.70381195]
[1749346857232,0.05305894,105750.0,105740.0,0.70381195]
[1749346857647,0.04360331,105750.0,105740.0,0.70381195]
[1749346857848,0.06251484,105750.0,105740.0,0.41557195]
[1749346858157,0.06251484,105750.0,105740.0,0.70373195]
[1749346858939,0.06251475,105750.0,105740.0,0.70373194]
[1749346859138,0.07197074,105750.0,105740.0,0.70373194]
[1749346859887,0.06251475,105750.0,105740.0,0.70373194]
[1749346860128,0.07197074,105750.0,105740.0,0.70373194]
[1749346860587,0.06251475,105750.0,105740.0,0.70373194]
[1749346861199,0.06251475,105750.0,105740.0,0.66623242]
[1749346861410,0.07197065,105750.0,105740.0,0.66623242]
[1749346861621,0.07197065,105750.0,105740.0,0.70385005]
[1749346861748,0.07197065,105750.0,105740.0,0.66623241]
[1749346861955,0.27055202,105750.0,105740.0,0.40623277]
[1749346862163,0.24218548,105750.0,105740.0,0.19817573]
[1749346862365,0.05306019,105750.0,105740.0,0.38766756]
[1749346863026,0.05305974,105750.0,105740.0,0.38766756]
[1749346863228,0.25164129,105750.0,105740.0,0.37821103]
[1749346863445,0.05305974,105750.0,105740.0,0.38766756]
[1749346864062,0.06251591,105750.0,105740.0,0.38766756]
[1749346864207,0.2516412,105750.0,105740.0,0.37821103]
[1749346864412,0.2516412,105750.0,105740.0,0.38766764]
[1749346864613,0.26109746,105750.0,105740.0,0.38766764]
[1749346864815,0.25164165,105750.0,105740.0,0.37821102]
[1749346866245,0.06251636,105750.0,105740.0,0.38766764]
[1749346867480,0.25164165,105750.0,105740.0,0.38766764]
[1749346868063,0.25164165,105750.0,105740.0,0.36875431]
[1749346868306,0.25164165,105750.0,105740.0,0.387668]
[1749346869148,0.24218557,105750.0,105740.0,0.387668]
[1749346869295,0.24218557,105750.0,105740.0,0.3782112]
[1749346869699,0.24218557,105750.0,105740.0,0.17015415]
[1749346869900,0.22327314,105750.0,105740.0,0.1796113]
[1749346870280,0.22327314,105750.0,105740.0,0.36875448]
[1749346870486,0.22327314,105750.0,105740.0,0.28181189]
[1749346872041,0.22327314,105750.0,105740.0,0.29126869]
[1749346874598,0.22327314,105750.0,105740.0,0.272355]
[1749346874775,0.22327314,105750.0,105740.0,0.25359505]
[1749346875139,0.22327314,105750.0,105740.0,0.26305193]
[1749346875543,0.22327314,105750.0,105740.0,0.25359504]
[1749346875747,0.71387314,105750.0,105740.0,0.25359504]
[1749346876713,0.71387314,105750.0,105740.0,0.30983354]
[1749346878832,0.71387314,105750.0,105740.0,0.30037656]
[1749346879048,0.71387314,105750.0,105740.0,0.30983354]
[1749346879820,0.71387314,105750.0,105740.0,0.31929043]
[1749346882423,0.68887314,105750.0,105740.0,0.30983354]
[1749346885388,0.77695314,105750.0,105740.0,0.30983354]
[1749346887913,0.77695314,105750.0,105740.0,0.27221665]
[1749346888329,0.76780529,105750.0,105740.0,0.28167345]
[1749346891150,0.76780529,105750.0,105740.0,0.28167344]
[1749346894666,0.76780529,105750.0,105740.0,0.29113015]
[1749346894878,0.76780529,105750.0,105740.0,0.30773015]
[1749346895643,0.77726137,105750.0,105740.0,0.31718677]
[1749346898686,0.77726137,105750.0,105740.0,0.30773015]
[1749346903279,0.60704806,105750.0,105740.0,0.31718677]
[1749346903475,0.61650432,105750.0,105740.0,0.31718677]
[1749346906069,0.61650432,105750.0,105740.0,0.33238677]
[1749346907109,0.61650432,105750.0,105740.0,0.33238676]
[1749346907513,0.61650432,105750.0,105740.0,0.33238614]
[1749346907726,0.80562961,105750.0,105740.0,0.32292961]
[1749346912215,0.61650432,105750.0,105740.0,0.32292961]
[1749346913436,0.80562961,105750.0,105740.0,0.31347299]
[1749346914476,0.80562961,105750.0,105740.0,0.31347298]
[1749346915272,0.80562961,105750.0,105740.0,0.3229296]
[1749346916233,0.80562961,105750.0,105740.0,0.31347298]
[1749346920186,0.7961738,105750.0,105740.0,0.31347298]
[1749346920804,0.7961738,105750.0,105740.0,0.31382474]
[1749346926773,0.7961738,105750.0,105740.0,0.30436803]
[1749346927338,0.78671772,105750.0,105740.0,0.30436803]
[1749346931517,0.78671772,105750.0,105740.0,0.30436802]
[1749346933055,0.78671772,105750.0,105740.0,0.30236802]
[1749346933272,0.78671772,105750.0,105740.0,0.30336802]
[1749346934090,0.78671772,105750.0,105740.0,0.29936802]
[1749346934473,0.78671772,105750.0,105740.0,0.30136802]
[1749346936376,0.78671772,105750.0,105740.0,0.31082473]
[1749346937223,0.78528263,105750.0,105740.0,0.31082473]
[1749346938254,0.78528263,105750.0,105740.0,0.30136802]
[1749346941708,0.78528263,105750.0,105740.0,0.30136801]
[1749346943265,0.78528263,105750.0,105740.0,0.3013681]
[1749346943440,0.78528263,105750.0,105740.0,0.3108249]
[1749346946022,0.78528263,105750.0,105740.0,0.3013681]
[1749346946218,0.78528263,105750.0,105740.0,0.3108249]
[1749346948215,0.78528263,105750.0,105740.0,0.3013681]
[1749346948622,0.78528263,105750.0,105740.0,0.3108249]
[1749346952518,0.78528263,105750.0,105740.0,0.3013681]
[1749346952737,0.77582646,105750.0,105740.0,0.29191138]
[1749346952939,0.77582646,105750.0,105740.0,0.30136835]
[1749346954096,0.77582646,105750.0,105740.0,0.31082524]
[1749346961240,0.77582646,105750.0,105740.0,0.30136835]
[1749346962162,0.77582646,105750.0,105740.0,0.31082524]
[1749346963140,0.77582646,105750.0,105740.0,0.30136835]
[1749346963335,0.77582646,105750.0,105740.0,0.31082524]
[1749346964137,0.77582646,105750.0,105740.0,0.31082523]
[1749346965945,0.7663702,105750.0,105740.0,0.29191127]
[1749346966156,0.7663702,105750.0,105740.0,0.30136825]
[1749346966355,0.7663702,105750.0,105740.0,0.28616825]
[1749346966564,0.7663702,105750.0,105740.0,0.29562514]
[1749346967232,0.7663702,105750.0,105740.0,0.31152514]
[1749346967436,0.58594045,105750.0,105740.0,0.42683795]
[1749346967639,0.59539609,105750.0,105740.0,0.42683794]
[1749346967865,0.60485181,105750.0,105740.0,0.42683794]
[1749346968108,0.57648491,105750.0,105740.0,0.42683794]
[1749346968352,0.48916491,105750.0,105740.0,0.42683793]
[1749346968560,0.57648491,105750.0,105740.0,0.37024767]
[1749346968846,0.57648491,105750.0,105740.0,0.44531216]